[Event "Titled Tuesday Blitz May 24 Early 2022"]
[White "Fier, Alexandr"]
[Black "Wadsworth, Matthew J"]
[WhiteFideId "2107139"]
[BlackFideId "415804"]
[WhiteElo "2571"]
[BlackElo "2294"]
[Result "1-0"]
[Round "06"]
[TimeControl "180+1"]
[Date "2022.05.25"]
[WhiteClock "0:01:56"]
[BlackClock "0:01:02"]

1. d4 {[%clk 0:03:00]}  Nf6 {[%clk 0:02:58]} 2. Bg5 {[%clk 0:03:01]}  c5 {[%clk 0:02:57]} 3. d5 {[%clk 0:02:59]}  g6 {[%clk 0:02:54]} 4. Nc3 {[%clk 0:02:55]}  d6 {[%clk 0:02:50]} 5. e4 {[%clk 0:02:55]}  Bg7 {[%clk 0:02:49]} 6. Nf3 {[%clk 0:02:54]}  O-O {[%clk 0:02:47]} 7. Qd2 {[%clk 0:02:54]}  a6 {[%clk 0:02:46]} 8. Bh6 {[%clk 0:02:54]}  b5 {[%clk 0:02:45]} 9. Bxg7 {[%clk 0:02:52]}  Kxg7 {[%clk 0:02:44]} 10. Bd3 {[%clk 0:02:50]}  c4 {[%clk 0:02:41]} 11. Be2 {[%clk 0:02:49]}  Bg4 {[%clk 0:02:42]} 12. Nd4 {[%clk 0:02:45]}  Bxe2 {[%clk 0:02:39]} 13. Qxe2 {[%clk 0:02:45]}  Qb6 {[%clk 0:02:36]} 14. Rd1 {[%clk 0:02:43]}  Nbd7 {[%clk 0:02:34]} 15. a3 {[%clk 0:02:38]}  b4 {[%clk 0:02:31]} 16. axb4 {[%clk 0:02:38]}  Qxb4 {[%clk 0:02:31]} 17. O-O {[%clk 0:02:31]}  Qxb2 {[%clk 0:02:22]} 18. Qe3 {[%clk 0:02:31]}  Qb4 {[%clk 0:02:17]} 19. f4 {[%clk 0:02:30]}  Qc5 {[%clk 0:02:13]} 20. Kh1 {[%clk 0:02:29]}  Ng4 {[%clk 0:02:04]} 21. Qg3 {[%clk 0:02:27]}  h5 {[%clk 0:02:04]} 22. h3 {[%clk 0:02:26]}  Nh6 {[%clk 0:02:01]} 23. e5 {[%clk 0:02:24]}  dxe5 {[%clk 0:01:55]} 24. fxe5 {[%clk 0:02:25]}  Qc7 {[%clk 0:01:38]} 25. d6 {[%clk 0:02:23]}  Qc5 {[%clk 0:01:38]} 26. e6 {[%clk 0:02:17]}  Qe5 {[%clk 0:01:23]} 27. Qxe5+ {[%clk 0:01:58]}  Nxe5 {[%clk 0:01:22]} 28. dxe7 {[%clk 0:01:59]}  Rfe8 {[%clk 0:01:19]} 29. Nd5 {[%clk 0:01:59]}  Ng8 {[%clk 0:01:15]} 30. exf7 {[%clk 0:01:57]}  Nxf7 {[%clk 0:01:02]} 31. Ne6+ {[%clk 0:01:56]} 1-0


[Site "https://www.chess.com"]

[Event "Titled Tuesday Blitz May 24 Early 2022"]
[White "Hoffmann, Asa"]
[Black "Juhasz, Agoston"]
[WhiteFideId "2001470"]
[BlackFideId "778346"]
[WhiteElo "2117"]
[BlackElo "2211"]
[Result "1-0"]
[Round "06"]
[TimeControl "180+1"]
[Date "2022.05.25"]
[WhiteClock "0:00:17"]
[BlackClock "0:00:09"]

1. d4 {[%clk 0:02:38]}  Nf6 {[%clk 0:03:00]} 2. Bg5 {[%clk 0:02:33]}  e6 {[%clk 0:02:57]} 3. Nd2 {[%clk 0:02:32]}  d5 {[%clk 0:02:53]} 4. e3 {[%clk 0:02:32]}  h6 {[%clk 0:02:50]} 5. Bh4 {[%clk 0:02:31]}  c5 {[%clk 0:02:48]} 6. c3 {[%clk 0:02:31]}  Nc6 {[%clk 0:02:46]} 7. f4 {[%clk 0:02:31]}  g5 {[%clk 0:02:28]} 8. fxg5 {[%clk 0:02:30]}  Nh7 {[%clk 0:02:28]} 9. Ngf3 {[%clk 0:02:29]}  hxg5 {[%clk 0:02:26]} 10. Bg3 {[%clk 0:02:29]}  Bd6 {[%clk 0:02:25]} 11. Ne5 {[%clk 0:02:22]}  Nxe5 {[%clk 0:02:20]} 12. dxe5 {[%clk 0:02:20]}  Be7 {[%clk 0:02:20]} 13. Qh5 {[%clk 0:02:13]}  c4 {[%clk 0:01:49]} 14. Be2 {[%clk 0:02:06]}  Bd7 {[%clk 0:01:44]} 15. O-O {[%clk 0:02:04]}  O-O {[%clk 0:01:35]} 16. Qh6 {[%clk 0:01:50]}  Kh8 {[%clk 0:01:25]} 17. Bh5 {[%clk 0:01:46]}  Bc5 {[%clk 0:01:06]} 18. Rae1 {[%clk 0:01:32]}  Qe7 {[%clk 0:01:03]} 19. Nf3 {[%clk 0:01:30]}  Rg8 {[%clk 0:00:49]} 20. Nd4 {[%clk 0:01:27]}  Rg7 {[%clk 0:00:47]} 21. Rf2 {[%clk 0:01:18]}  Rag8 {[%clk 0:00:38]} 22. Ref1 {[%clk 0:01:17]}  Be8 {[%clk 0:00:37]} 23. Rf6 {[%clk 0:01:12]}  Qd7 {[%clk 0:00:31]} 24. R1f2 {[%clk 0:01:04]}  Bf8 {[%clk 0:00:31]} 25. h4 {[%clk 0:00:57]}  Rg6 {[%clk 0:00:23]} 26. Bxg6 {[%clk 0:00:48]}  Bxh6 {[%clk 0:00:23]} 27. Bxf7 {[%clk 0:00:47]}  Rf8 {[%clk 0:00:13]} 28. Bxe6 {[%clk 0:00:44]}  Qe7 {[%clk 0:00:12]} 29. Rxh6 {[%clk 0:00:30]}  Rxf2 {[%clk 0:00:11]} 30. Bxf2 {[%clk 0:00:29]}  Kg7 {[%clk 0:00:09]} 31. hxg5 {[%clk 0:00:27]}  Qxg5 {[%clk 0:00:08]} 32. Rh3 {[%clk 0:00:24]}  Bg6 {[%clk 0:00:07]} 33. Rg3 {[%clk 0:00:21]}  Qxe5 {[%clk 0:00:07]} 34. Bf5 {[%clk 0:00:21]}  Nf8 {[%clk 0:00:07]} 35. Bxg6 {[%clk 0:00:20]}  Nxg6 {[%clk 0:00:08]} 36. Nf3 {[%clk 0:00:20]}  Qe4 {[%clk 0:00:08]} 37. Kh2 {[%clk 0:00:18]}  Kf7 {[%clk 0:00:07]} 38. Ng5+ {[%clk 0:00:18]}  Kf6 {[%clk 0:00:06]} 39. Nxe4+ {[%clk 0:00:18]}  dxe4 {[%clk 0:00:07]} 40. Rxg6+ {[%clk 0:00:18]}  Kxg6 {[%clk 0:00:07]} 41. g4 {[%clk 0:00:18]}  b5 {[%clk 0:00:07]} 42. Kg3 {[%clk 0:00:17]}  a5 {[%clk 0:00:08]} 43. a3 {[%clk 0:00:17]}  a4 {[%clk 0:00:09]} 44. Kf4 {[%clk 0:00:17]} 1-0


[Site "https://www.chess.com"]

[Event "Titled Tuesday Blitz May 24 Early 2022"]
[White "Horak, Martin"]
[Black "Stanisz, Patryk"]
[WhiteFideId "367095"]
[BlackFideId "1123106"]
[WhiteElo "1997"]
[BlackElo "1833"]
[Result "1-0"]
[Round "06"]
[TimeControl "180+1"]
[Date "2022.05.25"]
[WhiteClock "0:01:16"]
[BlackClock "0:00:02"]

1. Nf3 {[%clk 0:02:59]}  d5 {[%clk 0:02:55]} 2. e3 {[%clk 0:02:59]}  c6 {[%clk 0:02:55]} 3. c4 {[%clk 0:02:59]}  Nf6 {[%clk 0:02:54]} 4. Nc3 {[%clk 0:02:59]}  Bf5 {[%clk 0:02:51]} 5. cxd5 {[%clk 0:02:59]}  Nxd5 {[%clk 0:02:47]} 6. d4 {[%clk 0:02:54]}  Nxc3 {[%clk 0:02:45]} 7. bxc3 {[%clk 0:02:54]}  g6 {[%clk 0:02:45]} 8. Ne5 {[%clk 0:02:45]}  Be6 {[%clk 0:02:39]} 9. e4 {[%clk 0:02:39]}  Bg7 {[%clk 0:02:36]} 10. f4 {[%clk 0:02:37]}  O-O {[%clk 0:02:33]} 11. Be2 {[%clk 0:02:37]}  f6 {[%clk 0:02:26]} 12. Nf3 {[%clk 0:02:35]}  Bg4 {[%clk 0:02:19]} 13. O-O {[%clk 0:02:32]}  Qb6 {[%clk 0:02:02]} 14. Be3 {[%clk 0:02:29]}  e5 {[%clk 0:01:58]} 15. Rb1 {[%clk 0:02:29]}  Qc7 {[%clk 0:01:49]} 16. Qb3+ {[%clk 0:02:29]}  Kh8 {[%clk 0:01:49]} 17. Qxb7 {[%clk 0:02:29]}  Qxb7 {[%clk 0:01:39]} 18. Rxb7 {[%clk 0:02:29]}  Nd7 {[%clk 0:01:26]} 19. h3 {[%clk 0:02:13]}  Bxf3 {[%clk 0:01:22]} 20. Rxf3 {[%clk 0:02:14]}  Nb6 {[%clk 0:01:22]} 21. fxe5 {[%clk 0:02:07]}  fxe5 {[%clk 0:01:23]} 22. Rxf8+ {[%clk 0:02:06]}  Bxf8 {[%clk 0:01:11]} 23. dxe5 {[%clk 0:02:02]}  Bg7 {[%clk 0:01:12]} 24. Bd4 {[%clk 0:01:59]}  c5 {[%clk 0:00:46]} 25. Bxc5 {[%clk 0:01:58]}  Bxe5 {[%clk 0:00:44]} 26. Bd4 {[%clk 0:01:59]}  Bxd4+ {[%clk 0:00:41]} 27. cxd4 {[%clk 0:01:59]}  Rc8 {[%clk 0:00:38]} 28. Rxa7 {[%clk 0:01:54]}  Rc1+ {[%clk 0:00:38]} 29. Kf2 {[%clk 0:01:53]}  Rc2 {[%clk 0:00:39]} 30. d5 {[%clk 0:01:49]}  Nc4 {[%clk 0:00:30]} 31. Rc7 {[%clk 0:01:48]}  Na3 {[%clk 0:00:19]} 32. Rxc2 {[%clk 0:01:45]}  Nxc2 {[%clk 0:00:20]} 33. e5 {[%clk 0:01:43]}  Kg7 {[%clk 0:00:19]} 34. Bc4 {[%clk 0:01:39]}  Nd4 {[%clk 0:00:12]} 35. Ke3 {[%clk 0:01:36]}  Nf5+ {[%clk 0:00:11]} 36. Kd3 {[%clk 0:01:28]}  Kf8 {[%clk 0:00:07]} 37. d6 {[%clk 0:01:27]}  Ke8 {[%clk 0:00:06]} 38. Bb5+ {[%clk 0:01:16]}  Kd8 {[%clk 0:00:03]} 39. Ke4 {[%clk 0:01:15]}  h5 {[%clk 0:00:03]} 40. g4 {[%clk 0:01:15]}  hxg4 {[%clk 0:00:02]} 41. hxg4 {[%clk 0:01:16]} 1-0


[Site "https://www.chess.com"]

[Event "Titled Tuesday Blitz May 24 Early 2022"]
[White "Hua, Lefong"]
[Black "Srihari L R"]
[WhiteFideId "2602253"]
[BlackFideId "46617116"]
[WhiteElo "2637"]
[BlackElo "2121"]
[Result "0-1"]
[Round "06"]
[TimeControl "180+1"]
[Date "2022.05.24"]
[WhiteClock "0:01:17"]
[BlackClock "0:01:12"]

1. d4 {[%clk 0:03:00]}  Nf6 {[%clk 0:02:58]} 2. c4 {[%clk 0:03:01]}  g6 {[%clk 0:02:58]} 3. Nc3 {[%clk 0:03:01]}  Bg7 {[%clk 0:02:58]} 4. e4 {[%clk 0:03:01]}  d6 {[%clk 0:02:58]} 5. f4 {[%clk 0:03:02]}  O-O {[%clk 0:02:56]} 6. Nf3 {[%clk 0:03:02]}  c5 {[%clk 0:02:55]} 7. d5 {[%clk 0:03:02]}  e6 {[%clk 0:02:55]} 8. Be2 {[%clk 0:03:02]}  exd5 {[%clk 0:02:55]} 9. cxd5 {[%clk 0:03:03]}  Bg4 {[%clk 0:02:28]} 10. O-O {[%clk 0:03:02]}  Re8 {[%clk 0:02:27]} 11. h3 {[%clk 0:03:01]}  Bxf3 {[%clk 0:02:24]} 12. Bxf3 {[%clk 0:03:02]}  Nfd7 {[%clk 0:02:21]} 13. Re1 {[%clk 0:02:55]}  Na6 {[%clk 0:02:20]} 14. Be3 {[%clk 0:02:41]}  c4 {[%clk 0:02:18]} 15. Re2 {[%clk 0:02:17]}  Nac5 {[%clk 0:02:05]} 16. Kh2 {[%clk 0:02:05]}  Bxc3 {[%clk 0:01:55]} 17. bxc3 {[%clk 0:02:04]}  Nxe4 {[%clk 0:01:55]} 18. Bd4 {[%clk 0:02:00]}  f5 {[%clk 0:01:51]} 19. Qc2 {[%clk 0:01:47]}  Ndc5 {[%clk 0:01:48]} 20. Rae1 {[%clk 0:01:39]}  Nd3 {[%clk 0:01:36]} 21. Rg1 {[%clk 0:01:38]}  Nxf4 {[%clk 0:01:27]} 22. Rxe4 {[%clk 0:01:31]}  fxe4 {[%clk 0:01:27]} 23. Bxe4 {[%clk 0:01:32]}  Qh4 {[%clk 0:01:20]} 24. Bf3 {[%clk 0:01:24]}  Nd3 {[%clk 0:01:14]} 25. Rf1 {[%clk 0:01:17]}  Re1 {[%clk 0:01:12]} 0-1


[Site "https://www.chess.com"]

[Event "Titled Tuesday Blitz May 24 Early 2022"]
[White "Ibrahimli, Murad"]
[Black "Kim, Sergey"]
[WhiteFideId "13410229"]
[BlackFideId "13700570"]
[WhiteElo "2109"]
[BlackElo "2543"]
[Result "1-0"]
[Round "06"]
[TimeControl "180+1"]
[Date "2022.05.25"]
[WhiteClock "0:00:23"]
[BlackClock "0:00:01"]

1. e4 {[%clk 0:03:00]}  e5 {[%clk 0:02:59]} 2. Nf3 {[%clk 0:03:01]}  Nc6 {[%clk 0:02:59]} 3. Bb5 {[%clk 0:03:01]}  a6 {[%clk 0:02:59]} 4. Ba4 {[%clk 0:03:01]}  Nf6 {[%clk 0:03:00]} 5. O-O {[%clk 0:03:02]}  b5 {[%clk 0:03:00]} 6. Bb3 {[%clk 0:03:02]}  Bc5 {[%clk 0:03:01]} 7. c3 {[%clk 0:03:01]}  d6 {[%clk 0:03:01]} 8. d4 {[%clk 0:03:01]}  Bb6 {[%clk 0:03:02]} 9. Re1 {[%clk 0:03:02]}  h6 {[%clk 0:03:02]} 10. a4 {[%clk 0:03:00]}  Bb7 {[%clk 0:03:02]} 11. Na3 {[%clk 0:02:59]}  O-O {[%clk 0:03:01]} 12. Bc2 {[%clk 0:02:43]}  Re8 {[%clk 0:02:58]} 13. d5 {[%clk 0:02:34]}  Ne7 {[%clk 0:02:56]} 14. c4 {[%clk 0:02:26]}  c6 {[%clk 0:02:52]} 15. axb5 {[%clk 0:02:23]}  axb5 {[%clk 0:02:51]} 16. dxc6 {[%clk 0:02:20]}  Bxc6 {[%clk 0:02:50]} 17. cxb5 {[%clk 0:02:20]}  Bxb5 {[%clk 0:02:48]} 18. Be3 {[%clk 0:02:20]}  Bxe3 {[%clk 0:02:42]} 19. Rxe3 {[%clk 0:02:21]}  Bc6 {[%clk 0:02:42]} 20. Nc4 {[%clk 0:02:18]}  Rxa1 {[%clk 0:02:38]} 21. Qxa1 {[%clk 0:02:19]}  Bb5 {[%clk 0:02:29]} 22. Na3 {[%clk 0:02:15]}  Bc6 {[%clk 0:02:24]} 23. h3 {[%clk 0:02:14]}  Ng6 {[%clk 0:02:18]} 24. Qd1 {[%clk 0:02:01]}  Qa8 {[%clk 0:02:10]} 25. Nd2 {[%clk 0:01:43]}  Nf4 {[%clk 0:01:58]} 26. Nac4 {[%clk 0:01:40]}  Qb8 {[%clk 0:01:52]} 27. Rb3 {[%clk 0:01:31]}  Qc7 {[%clk 0:01:50]} 28. Ne3 {[%clk 0:01:29]}  d5 {[%clk 0:01:45]} 29. exd5 {[%clk 0:01:30]}  N6xd5 {[%clk 0:01:44]} 30. Be4 {[%clk 0:01:23]}  Nxe3 {[%clk 0:01:39]} 31. fxe3 {[%clk 0:01:23]}  Bxe4 {[%clk 0:01:35]} 32. Nxe4 {[%clk 0:01:24]}  Ng6 {[%clk 0:01:35]} 33. Rc3 {[%clk 0:01:22]}  Qb6 {[%clk 0:01:30]} 34. Qc2 {[%clk 0:01:16]}  Rb8 {[%clk 0:01:25]} 35. b3 {[%clk 0:01:16]}  Kh7 {[%clk 0:01:22]} 36. Ng3 {[%clk 0:01:15]}  Qf6 {[%clk 0:01:13]} 37. Kh2 {[%clk 0:01:14]}  Qg5 {[%clk 0:01:05]} 38. Rc7 {[%clk 0:01:14]}  Qf6 {[%clk 0:01:02]} 39. Qc4 {[%clk 0:01:13]}  Rf8 {[%clk 0:00:55]} 40. b4 {[%clk 0:01:11]}  Qd6 {[%clk 0:00:54]} 41. Ne4 {[%clk 0:01:03]}  Qb6 {[%clk 0:00:49]} 42. Qc5 {[%clk 0:01:03]}  Qxc5 {[%clk 0:00:40]} 43. bxc5 {[%clk 0:01:04]}  f5 {[%clk 0:00:41]} 44. Nd6 {[%clk 0:01:03]}  f4 {[%clk 0:00:39]} 45. e4 {[%clk 0:01:01]}  f3 {[%clk 0:00:38]} 46. gxf3 {[%clk 0:01:02]}  Rxf3 {[%clk 0:00:37]} 47. Nf5 {[%clk 0:01:01]}  Nf4 {[%clk 0:00:36]} 48. Rxg7+ {[%clk 0:01:01]}  Kh8 {[%clk 0:00:36]} 49. c6 {[%clk 0:01:01]}  Rxh3+ {[%clk 0:00:35]} 50. Kg1 {[%clk 0:01:01]}  Rc3 {[%clk 0:00:35]} 51. Rc7 {[%clk 0:00:51]}  Ne6 {[%clk 0:00:32]} 52. Rc8+ {[%clk 0:00:51]}  Kh7 {[%clk 0:00:32]} 53. Ne7 {[%clk 0:00:49]}  h5 {[%clk 0:00:30]} 54. Nd5 {[%clk 0:00:48]}  Rc2 {[%clk 0:00:29]} 55. c7 {[%clk 0:00:43]}  h4 {[%clk 0:00:28]} 56. Re8 {[%clk 0:00:43]}  Nxc7 {[%clk 0:00:28]} 57. Re7+ {[%clk 0:00:44]}  Kg6 {[%clk 0:00:28]} 58. Rxc7 {[%clk 0:00:45]}  Re2 {[%clk 0:00:26]} 59. Nc3 {[%clk 0:00:41]}  Re3 {[%clk 0:00:21]} 60. Rc4 {[%clk 0:00:39]}  Kg5 {[%clk 0:00:19]} 61. Nd5 {[%clk 0:00:39]}  Re2 {[%clk 0:00:18]} 62. Kf1 {[%clk 0:00:40]}  Ra2 {[%clk 0:00:17]} 63. Rc8 {[%clk 0:00:40]}  Kg4 {[%clk 0:00:17]} 64. Rf8 {[%clk 0:00:39]}  h3 {[%clk 0:00:17]} 65. Kg1 {[%clk 0:00:38]}  Kg3 {[%clk 0:00:16]} 66. Rg8+ {[%clk 0:00:38]}  Kf3 {[%clk 0:00:17]} 67. Nf6 {[%clk 0:00:38]}  Rc2 {[%clk 0:00:12]} 68. Kh1 {[%clk 0:00:35]}  Re2 {[%clk 0:00:10]} 69. Rg5 {[%clk 0:00:33]}  Kf4 {[%clk 0:00:08]} 70. Rf5+ {[%clk 0:00:33]}  Kg3 {[%clk 0:00:08]} 71. Rg5+ {[%clk 0:00:33]}  Kf4 {[%clk 0:00:08]} 72. Rg4+ {[%clk 0:00:33]}  Kf3 {[%clk 0:00:08]} 73. Rg1 {[%clk 0:00:31]}  Ra2 {[%clk 0:00:02]} 74. Rf1+ {[%clk 0:00:28]}  Ke3 {[%clk 0:00:01]} 75. Rf5 {[%clk 0:00:24]}  Kd4 {[%clk 0:00:01]} 76. Rf3 {[%clk 0:00:23]} 1-0


[Site "https://www.chess.com"]

[Event "Titled Tuesday Blitz May 24 Early 2022"]
[White "Ivanisevic, Ivan"]
[Black "Avramidou, Anastasia"]
[WhiteFideId "912417"]
[BlackFideId "4239873"]
[WhiteElo "2495"]
[BlackElo "2183"]
[Result "1-0"]
[Round "06"]
[TimeControl "180+1"]
[Date "2022.05.25"]
[WhiteClock "0:00:40"]
[BlackClock "0:00:02"]

1. e4 {[%clk 0:02:57]}  e6 {[%clk 0:02:52]} 2. d4 {[%clk 0:02:55]}  d5 {[%clk 0:02:53]} 3. e5 {[%clk 0:02:55]}  c5 {[%clk 0:02:53]} 4. c3 {[%clk 0:02:56]}  Nc6 {[%clk 0:02:53]} 5. Nf3 {[%clk 0:02:56]}  Qb6 {[%clk 0:02:54]} 6. Bd3 {[%clk 0:02:50]}  Bd7 {[%clk 0:02:53]} 7. O-O {[%clk 0:02:50]}  cxd4 {[%clk 0:02:51]} 8. Nbd2 {[%clk 0:02:48]}  dxc3 {[%clk 0:02:50]} 9. bxc3 {[%clk 0:02:49]}  Nh6 {[%clk 0:02:48]} 10. Nb3 {[%clk 0:02:45]}  Ng4 {[%clk 0:02:43]} 11. Bf4 {[%clk 0:02:40]}  f6 {[%clk 0:02:37]} 12. exf6 {[%clk 0:02:12]}  Nxf6 {[%clk 0:02:36]} 13. Rb1 {[%clk 0:02:06]}  Qd8 {[%clk 0:02:22]} 14. Nbd4 {[%clk 0:02:06]}  Bc5 {[%clk 0:02:10]} 15. Rxb7 {[%clk 0:02:02]}  O-O {[%clk 0:02:01]} 16. Ng5 {[%clk 0:01:38]}  Nxd4 {[%clk 0:01:41]} 17. cxd4 {[%clk 0:01:39]}  Bb6 {[%clk 0:01:17]} 18. Be5 {[%clk 0:01:32]}  h6 {[%clk 0:01:10]} 19. Nh3 {[%clk 0:00:58]}  Bc6 {[%clk 0:01:05]} 20. Rxg7+ {[%clk 0:00:50]}  Kxg7 {[%clk 0:00:59]} 21. Qg4+ {[%clk 0:00:51]}  Kh8 {[%clk 0:00:10]} 22. Qg6 {[%clk 0:00:52]}  Qe7 {[%clk 0:00:10]} 23. Qxh6+ {[%clk 0:00:51]}  Kg8 {[%clk 0:00:10]} 24. Ng5 {[%clk 0:00:49]}  Qg7 {[%clk 0:00:05]} 25. Bh7+ {[%clk 0:00:45]}  Kh8 {[%clk 0:00:05]} 26. Qh4 {[%clk 0:00:45]}  Bd8 {[%clk 0:00:03]} 27. Bf5+ {[%clk 0:00:40]}  Kg8 {[%clk 0:00:02]} 28. Bxe6+ {[%clk 0:00:40]} 1-0


[Site "https://www.chess.com"]

[Event "Titled Tuesday Blitz May 24 Early 2022"]
[White "Jakubowska, Anna"]
[Black "Levitskiy, Andrey"]
[WhiteFideId "1121952"]
[BlackFideId "14132885"]
[WhiteElo "1878"]
[BlackElo "2301"]
[Result "0-1"]
[Round "06"]
[TimeControl "180+1"]
[Date "2022.05.25"]
[WhiteClock "0:00:26"]
[BlackClock "0:00:17"]

1. e4 {[%clk 0:02:57]}  e6 {[%clk 0:02:55]} 2. d4 {[%clk 0:02:56]}  d5 {[%clk 0:02:55]} 3. Nd2 {[%clk 0:02:54]}  c5 {[%clk 0:02:55]} 4. exd5 {[%clk 0:02:54]}  Qxd5 {[%clk 0:02:56]} 5. Ngf3 {[%clk 0:02:54]}  cxd4 {[%clk 0:02:56]} 6. Bc4 {[%clk 0:02:54]}  Qd6 {[%clk 0:02:56]} 7. O-O {[%clk 0:02:55]}  Nf6 {[%clk 0:02:56]} 8. Nb3 {[%clk 0:02:54]}  Nc6 {[%clk 0:02:56]} 9. Nbxd4 {[%clk 0:02:55]}  Nxd4 {[%clk 0:02:55]} 10. Nxd4 {[%clk 0:02:55]}  a6 {[%clk 0:02:54]} 11. c3 {[%clk 0:02:54]}  Qc7 {[%clk 0:02:54]} 12. Bb3 {[%clk 0:02:54]}  Bd6 {[%clk 0:02:55]} 13. h3 {[%clk 0:02:54]}  O-O {[%clk 0:02:54]} 14. Bc2 {[%clk 0:02:49]}  h6 {[%clk 0:02:51]} 15. Qf3 {[%clk 0:02:41]}  Be5 {[%clk 0:02:46]} 16. Re1 {[%clk 0:02:36]}  Bxd4 {[%clk 0:02:36]} 17. cxd4 {[%clk 0:02:16]}  Qxc2 {[%clk 0:02:33]} 18. Bxh6 {[%clk 0:02:15]}  Qf5 {[%clk 0:02:18]} 19. Qg3 {[%clk 0:02:01]}  Nh5 {[%clk 0:02:11]} 20. Qh4 {[%clk 0:01:57]}  Qg6 {[%clk 0:01:20]} 21. Re5 {[%clk 0:01:46]}  f5 {[%clk 0:01:19]} 22. Bg5 {[%clk 0:01:36]}  Bd7 {[%clk 0:01:12]} 23. Rae1 {[%clk 0:01:28]}  Rae8 {[%clk 0:01:08]} 24. R1e3 {[%clk 0:01:07]}  Bc6 {[%clk 0:01:06]} 25. f4 {[%clk 0:00:59]}  Bd5 {[%clk 0:01:01]} 26. b3 {[%clk 0:00:57]}  Be4 {[%clk 0:00:59]} 27. g4 {[%clk 0:00:53]}  Nf6 {[%clk 0:00:50]} 28. gxf5 {[%clk 0:00:52]}  exf5 {[%clk 0:00:26]} 29. Rg3 {[%clk 0:00:46]}  Qh5 {[%clk 0:00:16]} 30. Bxf6 {[%clk 0:00:44]}  Qd1+ {[%clk 0:00:16]} 31. Kf2 {[%clk 0:00:42]}  Qd2+ {[%clk 0:00:16]} 32. Kg1 {[%clk 0:00:28]}  Qe1+ {[%clk 0:00:16]} 33. Kh2 {[%clk 0:00:26]}  Qh1# {[%clk 0:00:17]} 0-1


[Site "https://www.chess.com"]

[Event "Titled Tuesday Blitz May 24 Early 2022"]
[White "Jeet, Jain"]
[Black "Makhnev, Denis"]
[WhiteFideId "5073022"]
[BlackFideId "13707647"]
[WhiteElo "2028"]
[BlackElo "2501"]
[Result "0-1"]
[Round "06"]
[TimeControl "180+1"]
[Date "2022.05.24"]
[WhiteClock "0:00:55"]
[BlackClock "0:00:07"]

1. Nf3 {[%clk 0:03:00]}  Nf6 {[%clk 0:02:59]} 2. e3 {[%clk 0:03:00]}  b6 {[%clk 0:02:58]} 3. b3 {[%clk 0:03:01]}  Bb7 {[%clk 0:02:58]} 4. Bb2 {[%clk 0:03:01]}  c5 {[%clk 0:02:57]} 5. c4 {[%clk 0:03:01]}  e6 {[%clk 0:02:56]} 6. d4 {[%clk 0:03:00]}  cxd4 {[%clk 0:02:56]} 7. Nxd4 {[%clk 0:03:00]}  a6 {[%clk 0:02:53]} 8. Nc3 {[%clk 0:03:00]}  Qc7 {[%clk 0:02:53]} 9. Nf3 {[%clk 0:02:58]}  d6 {[%clk 0:02:47]} 10. Be2 {[%clk 0:02:58]}  Be7 {[%clk 0:02:47]} 11. O-O {[%clk 0:02:58]}  O-O {[%clk 0:02:48]} 12. Rc1 {[%clk 0:02:55]}  Nbd7 {[%clk 0:02:48]} 13. Nd4 {[%clk 0:02:51]}  Ne5 {[%clk 0:02:37]} 14. f4 {[%clk 0:02:49]}  Ned7 {[%clk 0:02:37]} 15. Bf3 {[%clk 0:02:49]}  Nc5 {[%clk 0:02:37]} 16. Bxb7 {[%clk 0:02:47]}  Qxb7 {[%clk 0:02:37]} 17. Qf3 {[%clk 0:02:48]}  Qxf3 {[%clk 0:02:32]} 18. gxf3 {[%clk 0:02:40]}  Rac8 {[%clk 0:01:55]} 19. Rfd1 {[%clk 0:02:37]}  g6 {[%clk 0:01:54]} 20. Kg2 {[%clk 0:02:35]}  Rfd8 {[%clk 0:01:51]} 21. Ba3 {[%clk 0:02:32]}  Kf8 {[%clk 0:01:50]} 22. Bxc5 {[%clk 0:02:30]}  bxc5 {[%clk 0:01:46]} 23. Nde2 {[%clk 0:02:29]}  d5 {[%clk 0:01:37]} 24. cxd5 {[%clk 0:02:19]}  exd5 {[%clk 0:01:36]} 25. Rd2 {[%clk 0:02:19]}  Rd6 {[%clk 0:01:05]} 26. Na4 {[%clk 0:02:17]}  Rdc6 {[%clk 0:01:02]} 27. f5 {[%clk 0:02:14]}  gxf5 {[%clk 0:00:56]} 28. Nf4 {[%clk 0:02:14]}  d4 {[%clk 0:00:53]} 29. exd4 {[%clk 0:02:04]}  cxd4 {[%clk 0:00:54]} 30. Rxc6 {[%clk 0:01:50]}  Rxc6 {[%clk 0:00:55]} 31. Ne2 {[%clk 0:01:30]}  d3 {[%clk 0:00:37]} 32. Rxd3 {[%clk 0:01:30]}  Rc2 {[%clk 0:00:36]} 33. Nc3 {[%clk 0:01:30]}  Bb4 {[%clk 0:00:29]} 34. Kg3 {[%clk 0:01:28]}  f4+ {[%clk 0:00:17]} 35. Kxf4 {[%clk 0:01:23]}  Bxc3 {[%clk 0:00:17]} 36. Nxc3 {[%clk 0:01:24]}  Rxc3 {[%clk 0:00:17]} 37. Rd6 {[%clk 0:01:10]}  Nh5+ {[%clk 0:00:12]} 38. Kg4 {[%clk 0:01:07]}  Ng7 {[%clk 0:00:06]} 39. Rxa6 {[%clk 0:01:07]}  Ne6 {[%clk 0:00:07]} 40. b4 {[%clk 0:01:05]}  Rc4+ {[%clk 0:00:07]} 41. Kf5 {[%clk 0:01:05]}  Rxb4 {[%clk 0:00:07]} 42. a3 {[%clk 0:01:02]}  Rf4+ {[%clk 0:00:07]} 43. Ke5 {[%clk 0:01:02]}  Rxf3 {[%clk 0:00:07]} 44. a4 {[%clk 0:01:02]}  Rh3 {[%clk 0:00:07]} 45. a5 {[%clk 0:01:00]}  Rxh2 {[%clk 0:00:07]} 46. Ra8+ {[%clk 0:01:00]}  Kg7 {[%clk 0:00:07]} 47. a6 {[%clk 0:01:01]}  Ra2 {[%clk 0:00:07]} 48. Kd6 {[%clk 0:01:00]}  h5 {[%clk 0:00:06]} 49. Kc6 {[%clk 0:00:55]}  h4 {[%clk 0:00:06]} 50. Kb6 {[%clk 0:00:55]}  h3 {[%clk 0:00:05]} 51. Rc8 {[%clk 0:00:55]}  Rb2+ {[%clk 0:00:05]} 52. Ka5 {[%clk 0:00:53]}  h2 {[%clk 0:00:04]} 53. Rc1 {[%clk 0:00:52]}  Nc5 {[%clk 0:00:02]} 54. Rh1 {[%clk 0:00:51]}  Nxa6 {[%clk 0:00:02]} 55. Kxa6 {[%clk 0:00:50]}  Kg6 {[%clk 0:00:02]} 56. Ka5 {[%clk 0:00:50]}  Kg5 {[%clk 0:00:03]} 57. Ka4 {[%clk 0:00:51]}  Kg4 {[%clk 0:00:03]} 58. Ka3 {[%clk 0:00:52]}  Rf2 {[%clk 0:00:04]} 59. Kb3 {[%clk 0:00:51]}  Kg3 {[%clk 0:00:04]} 60. Kc3 {[%clk 0:00:52]}  Kg2 {[%clk 0:00:05]} 61. Re1 {[%clk 0:00:53]}  h1=Q {[%clk 0:00:05]} 62. Rxh1 {[%clk 0:00:54]}  Kxh1 {[%clk 0:00:06]} 63. Kd3 {[%clk 0:00:55]}  Kg2 {[%clk 0:00:07]} 0-1


[Site "https://www.chess.com"]